fUST/lending_fUST_20240102
["ID","MTS","AMOUNT","RATE_DAILY","PERIOD"]
[309820237,1704173438574,-2376.5727393,0.00037245,2]
[309820239,1704173438584,-712.97182179,0.00037245,2]
[309820241,1704173438593,-834.73657833,0.00037245,2]
[309820243,1704173438602,-201.55442637,0.00037245,2]
[309820245,1704173438611,-238.47340037,0.00037245,2]
[309820247,1704173438620,-583.75373149,0.00037708,2]
[309820249,1704173438630,-621.26586189,0.00038,120]
[309820251,1704173438639,-500.0,0.00038356,2]
[309820253,1704173438648,-300.0,0.000385,15]
[309820254,1704173438657,-740.0,0.0003874,2]
[309820256,1704173438667,-583.75373149,0.00038803,2]
[309820258,1704173438676,-155.0,0.000389,2]
[309820260,1704173438686,-238.6625714,0.00039598,2]
[309820263,1704173438695,-150.92453773,0.00039771,2]
[309820265,1704173438705,-250.36569715,0.00039771,2]
[309820267,1704173438714,-618.0,0.0003987,60]
[309820269,1704173438724,-618.0,0.0003988,60]
[309820270,1704173438733,-618.0,0.0003989,60]
[309820272,1704173438742,-10721.06171,0.00039898,4]
[309820274,1704173438751,-500.72469542,0.00039899,2]
[309820276,1704173438760,-208.59226606,0.00039899,2]
[309820278,1704173438770,-583.75373149,0.00039899,2]
[309820280,1704173438779,-21307.0819504,0.000399,2]
[309820283,1704173438791,-22089.67677395,0.000399,2]
[309820285,1704173438803,-7583.04652865,0.000399,2]
[309820287,1704173438815,-1685.09432451,0.000399,2]
[309820289,1704173438827,-2301.72933121,0.000399,2]
[309820292,1704173438839,-36121.53178964,0.000399,2]
[309820294,1704173438852,-48510.17102972,0.000399,2]
[309820296,1704173438864,-52415.55854059,0.000399,2]
[309820710,1704174427234,333.0,0.0003,120]
[309820834,1704174638584,-781.72443064,0.0002835,2]
[309820835,1704174638594,-3747.82109117,0.00028351,2]
[309820836,1704174638605,-6725.23468809,0.00028351,2]
[309820837,1704174638615,-278.48436986,0.00028352,2]
[309820838,1704174638627,-1748.09377026,0.00028352,2]
[309820839,1704174638637,-160.83720431,0.00028352,2]
[309820840,1704174638646,-13669.99879992,0.00028353,2]
[309820841,1704174638656,-524.73174263,0.00028354,2]
[309820842,1704174638665,-2989.40003667,0.00028354,2]
[309820843,1704174638674,-162.44234547,0.00028354,2]
[309820844,1704174638683,-2031.17478188,0.00028355,2]
[309820845,1704174638692,-151.42429694,0.00028357,2]
[309820846,1704174638702,-154.92253873,0.00028984,2]
[309820847,1704174638711,-253.50303766,0.00028984,7]
[309820848,1704174638721,-154.92253873,0.00028987,2]
[309820849,1704174638732,-1609.124227,0.00028989,2]
[309820850,1704174638743,-1609.124227,0.00028989,2]
[309820851,1704174638753,-1609.124227,0.00028989,2]
[309820852,1704174638762,-1609.124227,0.00028989,2]
[309820853,1704174638772,-1609.124227,0.00028989,2]
[309820854,1704174638781,-218.42256092,0.00029994,2]
[309820855,1704174638790,-2788.32930304,0.0003,4]
[309820856,1704174638799,-1000.0,0.0003,2]
[309820857,1704174638808,-870.06062992,0.0003,14]
[309820858,1704174638817,-172.462341,0.00032001,2]
[309820859,1704174638826,-197.085193,0.00032445,2]
[309820860,1704174638835,-322.61079,0.00032492,2]
[309820861,1704174638844,-1774.53688728,0.00032996,3]
[309820862,1704174638853,-153.0,0.00033,2]
[309820863,1704174638862,-197.085193,0.00033646,2]
[309820864,1704174638871,-1000.0,0.00034845,7]
[309820865,1704174638880,-197.085193,0.00034846,2]
[309820866,1704174638890,-154.92253873,0.0003545,4]
[309820867,1704174638899,-590.09569667,0.00035451,2]
[309820868,1704174638908,-547.0,0.00035452,2]
[309820869,1704174638917,-150.90945433,0.00035599,2]
[309820870,1704174638926,-2238.262206,0.00035616,120]
[309820871,1704174638936,-197.085193,0.00036047,2]
[309820872,1704174638945,-172.462341,0.00036363,2]
[309820873,1704174638955,-3770.39476598,0.00036998,5]
[309820874,1704174638965,-1440.23300998,0.00036999,4]
[309820875,1704174638975,-154.92253873,0.00037,4]
[309820876,1704174638984,-382.97026808,0.00037245,2]
[309820877,1704174638994,-169.75519567,0.00037245,2]
[309820878,1704174639003,-197.085193,0.00037247,2]
[309820879,1704174639013,-3528.18347641,0.000378,2]
[309820908,1704174641774,-509.25612575,0.000378,2]
[309821024,1704174646512,-595.16114101,0.000378,2]
[309821025,1704174646522,-507.96895673,0.00038356,2]
[309821026,1704174646532,-597.0,0.0003874,2]
[309821027,1704174646542,-155.0,0.000389,2]
[309821028,1704174646551,-150.90945433,0.00039554,2]
[309821030,1704174646561,-250.34067559,0.00039554,2]
[309821032,1704174646571,-188.54839568,0.000398,2]
[309821033,1704174646581,-71.86137666,0.00039825,2]
[309821074,1704175835684,-154.92253873,0.00024195,2]
[309821075,1704175835694,-154.92253873,0.00024195,2]
[309821077,1704175835704,-162.44234547,0.00024196,2]
[309821079,1704175835715,-13669.99879992,0.00024196,2]
[309821081,1704175835724,-3471.74824565,0.00024197,2]
[309821083,1704175835734,-161.370236,0.00024201,2]
[309821085,1704175835744,-1926.59727918,0.00024202,2]
[309821087,1704175835754,-438.989884,0.00024204,2]
[309821089,1704175835765,-19391.853048,0.00024322,2]
[309821090,1704175835775,-169.590296,0.00024579,2]
[309821092,1704175835785,-380.0,0.00024658,2]
[309821094,1704175835796,-253.50303766,0.00024735,7]
[309821096,1704175835806,-5000.0,0.00024739,2]
[309821098,1704175835817,-612.7701582,0.00025,2]
[309821100,1704175835826,-712.07325241,0.00025001,2]
[309821102,1704175835836,-403.98760198,0.00025003,2]
[309821104,1704175835846,-358.52864,0.00025004,2]
[309821106,1704175835855,-358.52864,0.00025004,2]
[309821108,1704175835867,-358.52864,0.00025004,2]
[309821110,1704175835877,-358.52864,0.00025004,2]
[309821112,1704175835888,-358.52864,0.00025004,2]
[309821114,1704175835898,-169.590296,0.00025695,2]
[309821116,1704175835907,-241.09763242,0.00025728,2]
[309821118,1704175835917,-164.6374692,0.00025729,2]
[309821260,1704175838762,-77.55049919,0.00025729,2]
[309821261,1704175838772,-770.76806,0.00026301,2]
[309821263,1704175838781,-88.04028073,0.0002642,2]
[309821265,1704175838793,-84.60079563,0.0002642,2]
[309821266,1704175838803,-1054.75237644,0.00026521,2]
[309821268,1704175838812,-17299.64679562,0.00026523,2]
[309821269,1704175838821,-169.590296,0.00026812,2]
[309821271,1704175838831,-770.76806,0.00027275,2]
[309821272,1704175838839,-622.83706111,0.00027498,2]
[309821274,1704175838849,-4589.91095082,0.000275,2]
[309821513,1704175841764,-3949.95420414,0.000275,2]
[309821759,1704175843729,-1396.38937695,0.000275,2]
[309821970,1704175846734,-522.3524343,0.000275,2]
[309822176,1704177042893,-154.92253873,0.0002298,2]
[309822177,1704177042903,-160.83720431,0.00022981,2]
[309822178,1704177042912,-669.13420052,0.00023423,2]
[309822199,1704177260104,4413.2462439,0.00021323,2]
[309822200,1704177322151,1000.0,0.00021323,2]
[309822201,1704177336135,1000.0,0.00021323,2]
[309822202,1704177861324,2942.1641626,0.00020881,2]
[309822241,1704178231997,-156.55866731,0.00022106,2]
[309822243,1704178232007,-2026.57814012,0.00022107,2]
[309822246,1704178232016,-10473.05577926,0.00022108,2]
[309822247,1704178232038,-3731.78532301,0.00022108,2]
[309822248,1704178232047,-300.76052365,0.00022109,2]
[309822249,1704178232057,-2235.73871425,0.00022109,2]
[309822250,1704178232066,-2031.17478188,0.00022109,2]
[309822251,1704178232076,-288.7480981,0.0002211,2]
[309822252,1704178232085,-170.24409039,0.00022111,2]
[309822253,1704178232096,-253.50303766,0.00022207,7]
[309822254,1704178232107,-4802.57442748,0.00022208,2]
[309822255,1704178232116,-13669.99879992,0.00022209,2]
[309822256,1704178232126,-219.494942,0.00022214,2]
[309822257,1704178232135,-360.09581363,0.00022894,2]
[309822258,1704178232146,-158.52513467,0.00022992,2]
[309822259,1704178232156,-169.590296,0.00023907,2]
[309822260,1704178232165,-200.0,0.0002443,7]
[309822261,1704178232176,-1434.114557,0.00024432,2]
[309822262,1704178232185,-1434.114557,0.00024432,2]
[309822263,1704178232195,-1434.114557,0.00024432,2]
[309822264,1704178232204,-1434.114557,0.00024432,2]
[309822265,1704178232213,-1434.114557,0.00024432,2]
[309822266,1704178232223,-174.6074496,0.00024606,2]
[309822267,1704178232233,-182.028501,0.00024966,2]
[309822268,1704178232347,-178.40912131,0.00025,2]
[309822269,1704178232356,-2942.1641626,0.00025881,2]
[309822270,1704178232365,-957.341947,0.00026301,2]
[309822271,1704178232374,-151.0,0.00026323,2]
[309822272,1704178232383,-151.0,0.00026323,2]
[309822273,1704178232392,-346.804532,0.00026323,2]
[309822274,1704178232401,-346.804532,0.00026323,2]
[309822275,1704178232410,-652.25070121,0.000264,2]
[309822276,1704178232419,-280.0,0.00026873,15]
[309822277,1704178232429,-957.341947,0.00027275,2]
[309822278,1704178232439,-327.27981828,0.000274,2]
[309822279,1704178232448,-2691.6862504,0.00027498,2]
[309822280,1704178232457,-309.6903097,0.00027498,2]
[309822281,1704178232466,-253.55090718,0.00027498,2]
[309822282,1704178232476,-1196.38234,0.00027499,2]
[309822283,1704178232485,-1196.38234,0.00027499,2]
[309822284,1704178232494,-346.804532,0.00027499,2]
[309822285,1704178232504,-346.804532,0.00027499,2]
[309822286,1704178232513,-1501.54533376,0.00027499,2]
[309822287,1704178232522,-2498.9869942,0.000275,2]
[309822288,1704178232535,-16401.31328569,0.000275,2]
[309822289,1704178232545,-3384.1862163,0.000275,2]
[309822290,1704178232555,-3001.03422057,0.000275,2]
[309822291,1704178232565,-151.0,0.000275,2]
[309822292,1704178232576,-151.0,0.000275,2]
[309822293,1704178232585,-1196.38234,0.000275,2]
[309822294,1704178232595,-1196.38234,0.000275,2]
[309822295,1704178232605,-346.804532,0.000275,2]
[309822296,1704178232615,-346.804532,0.000275,2]
[309822297,1704178232626,-346.804532,0.000275,2]
[309822298,1704178232635,-346.804532,0.000275,2]
[309822299,1704178232645,-621.61253506,0.0002772,2]
[309822300,1704178232656,-1196.38234,0.0002772,2]
[309822301,1704178232668,-1196.38234,0.0002772,2]
[309822302,1704178232678,-151.0,0.00027939,2]
[309822303,1704178232687,-151.0,0.00027939,2]
[309822304,1704178232698,-781.72443064,0.00028,2]
[309822305,1704178232707,-957.341947,0.00028248,2]
[309822306,1704178232716,-620.08062675,0.00029106,2]
[309822307,1704178232726,-346.804532,0.00029106,2]
[309822308,1704178232735,-346.804532,0.00029106,2]
[309822309,1704178232745,-957.341947,0.00029221,2]
[309822310,1704178232755,-363.0,0.0002956,15]
[309822311,1704178232764,-1527.53842813,0.0003,4]
[309822312,1704178232773,-1196.38234,0.0003,2]
[309822313,1704178232783,-1196.38234,0.0003,2]
[309822314,1704178232793,-957.341947,0.00030194,2]
[309822315,1704178232802,-151.0,0.000304,2]
[309822316,1704178232812,-294.28293675,0.000304,2]
[309822317,1704178232822,-327.27981824,0.00030481,2]
[309822318,1704178232831,-620.00403134,0.00030561,2]
[309822319,1704178232842,-346.804532,0.00030561,2]
[309822320,1704178232851,-346.804532,0.00030561,2]
[309822321,1704178232861,-216.47365635,0.00032,10]
[309822322,1704178232871,-984.5444071,0.00032,2]
[309822323,1704178232881,-686.7472763,0.00033,3]
[309822324,1704178232891,-153.0,0.00033,2]
[309822325,1704178232900,-1196.38234,0.00033,2]
[309822326,1704178232910,-1196.38234,0.00033,2]
[309822327,1704178232920,-219.494942,0.00033321,2]
[309822328,1704178232930,-327.27981824,0.00033563,2]
[309822329,1704178232939,-150.92453773,0.00033718,2]
[309822330,1704178232949,-3167.05,0.00033987,3]
[309822331,1704178232958,-346.804532,0.00033987,2]
[309822332,1704178232967,-346.804532,0.00033987,2]
[309822333,1704178232977,-3800.46,0.0003399,3]
[309822334,1704178232986,-346.804532,0.00033997,2]
[309822335,1704178232994,-346.804532,0.00033997,2]
[309822336,1704178233004,-1774.53688728,0.00033997,3]
[309822337,1704178233013,-639.5302461,0.00033998,4]
[309822338,1704178233021,-4758.69672081,0.00034,2]
[309822339,1704178233031,-1000.0,0.00034,7]
[309822340,1704178233040,-151.0,0.00034,2]
[309822341,1704178233049,-1196.38234,0.00034,2]
[309822342,1704178233058,-1196.38234,0.00034,2]
[309822343,1704178233067,-346.804532,0.00034,2]
[309822344,1704178233076,-346.804532,0.00034,2]
[309822345,1704178233086,-151.0,0.0003499,2]
[309822346,1704178233095,-638.17206354,0.0003499,2]
[309822347,1704178233108,-324.86814204,0.0003499,2]
[309822350,1704178237504,6862.34041516,0.00016,5]
[309822382,1704178238194,-233.34213442,0.0003499,2]
[309822383,1704178238205,-1196.38234,0.0003499,2]
[309822384,1704178238216,-501.86850669,0.00035,7]
[309822385,1704178238227,-4020.43555914,0.00035,3]
[309822544,1704178243050,-5013.91502131,0.00034999,4]
[309822545,1704178243062,-5283.86031303,0.00035,3]
[309822546,1704178243165,-590.09569667,0.00035,2]
[309822547,1704178243179,-154.92253873,0.00035,4]
[309822548,1704178243190,-3537.57585844,0.00035,2]
[309822549,1704178243199,-151.0,0.00035,2]
[309822550,1704178243210,-151.0,0.00035,2]
[309822551,1704178243221,-1196.38234,0.00035,2]
[309822552,1704178243231,-1196.38234,0.00035,2]
[309822553,1704178243239,-1196.38234,0.00035,2]
[309822554,1704178243249,-1196.38234,0.00035,2]
[309822555,1704178243258,-346.804532,0.00035,2]
[309822556,1704178243267,-346.804522,0.00035,2]
[309822557,1704178243277,-488.0,0.00035452,2]
[309822558,1704178243286,-2238.262206,0.00035616,120]
[309822559,1704178243295,-226.51961421,0.00036304,4]
[309822560,1704178243304,-550.0,0.000365,2]
[309822561,1704178243314,-327.27981824,0.00036644,2]
[309822562,1704178243323,-151.0,0.00036798,2]
[309822563,1704178243332,-1196.38234,0.00036879,2]
[309822564,1704178243342,-1196.382344,0.00036879,2]
[309822565,1704178243351,-154.92253873,0.00037,4]
[309822566,1704178243361,-398.87551983,0.00037245,2]
[309822567,1704178243370,-289.68252177,0.00037245,2]
[309822568,1704178243379,-325.94548913,0.00037245,2]
[309822569,1704178243388,-150.92453773,0.00037465,2]
[309822570,1704178243397,-250.36569715,0.00037465,2]
[309822571,1704178243406,-306.0,0.00037507,2]
[309822572,1704178243415,-10011.08958179,0.00038,2]
[309822573,1704178243424,-151.0,0.00038,2]
[309822574,1704178243434,-301.84907546,0.00038094,4]
[309822575,1704178243442,-3770.39476598,0.00038108,5]
[309822576,1704178243451,-1440.23300998,0.00038109,4]
[309822577,1704178243460,-238.0,0.00038414,2]
[309822578,1704178243469,-160.0,0.00038414,2]
[309822579,1704178243478,-250.0,0.00038414,2]
[309822580,1704178243488,-155.0,0.000387,2]
[309822581,1704178243497,-603.69815092,0.00038735,7]
[309822582,1704178243506,-538.0,0.0003874,2]
[309822583,1704178243515,-1268.1325376,0.00039,10]
[309822584,1704178243525,-311.2719896,0.00039337,2]
[309822585,1704178243535,-166.91046477,0.00039386,4]
[309822586,1704178243544,-1367.0,0.00039478,30]
[309822587,1704178243555,-453.0,0.0003967,60]
[309822588,1704178243566,-453.0,0.0003968,60]
[309822589,1704178243576,-2639.21,0.0003969,3]
[309822590,1704178243585,-453.0,0.0003969,60]
[309822591,1704178243595,-214.59629804,0.00039699,2]
[309822592,1704178243606,-563.14,0.00039699,2]
[309822593,1704178243615,-563.14,0.00039699,2]
[309822594,1704178243625,-563.14,0.00039699,2]
[309822595,1704178243634,-563.14,0.00039699,2]
[309822596,1704178243645,-563.14,0.00039699,2]
[309822597,1704178243654,-563.14,0.00039699,2]
[309822598,1704178243664,-563.14,0.00039699,2]
[309822599,1704178243673,-563.14,0.00039699,2]
[309822600,1704178243683,-276000.0,0.000397,2]
[309822601,1704178243692,-1207.39630185,0.00039715,30]
[309822602,1704178243702,-327.27981824,0.00039725,2]
[309822603,1704178243711,-281.98215557,0.00039825,3]
[309822604,1704178243721,-180.10233025,0.00039888,2]
[309822605,1704178243730,-223.64411422,0.00039898,4]
[309822606,1704178243739,-319.71789768,0.00039898,2]
[309822607,1704178243749,-1118.34726076,0.00039898,4]
[309822608,1704178243759,-260.34361942,0.00039898,7]
[309822609,1704178243770,-2940.551191,0.00039898,4]
[309822610,1704178243779,-732.03319824,0.00039898,4]
[309822611,1704178243788,-243.99091742,0.00039898,4]
[309822612,1704178243797,-1009.4519705,0.00039899,4]
[309822613,1704178243807,-1500.0,0.000399,2]
[309822614,1704178243817,-150.0,0.0003997,7]
[309822615,1704178243826,-150.0,0.0003997,60]
[309822616,1704178243835,-162.0,0.0003998,7]
[309822617,1704178243844,-150.0,0.0003998,7]
[309822618,1704178243854,-150.0,0.0003998,60]
[309822619,1704178243863,-150.0,0.0003999,7]
[309822620,1704178243872,-150.0,0.0003999,7]
[309822621,1704178243881,-150.0,0.0003999,60]
[309822622,1704178243891,-190.18136167,0.00039998,5]
[309822623,1704178243900,-155.6849062,0.00039998,4]
[309822624,1704178243909,-261.15364778,0.00039998,4]
[309822625,1704178243919,-2150.19829792,0.00039998,2]
[309822626,1704178243928,-500.0,0.00039999,4]
[309822627,1704178243937,-580.51227623,0.00039999,4]
[309822628,1704178243947,-459.64245109,0.00039999,4]
[309822629,1704178243956,-500.0,0.00039999,4]
[309822630,1704178243965,-500.0,0.00039999,4]
[309822631,1704178243975,-500.0,0.00039999,4]
[309822632,1704178243984,-500.0,0.00039999,4]
[309822633,1704178243993,-232.34121036,0.00039999,4]
[309822634,1704178244002,-445.23448519,0.00039999,4]
[309822635,1704178244013,-577.80191453,0.00039999,4]
[309822636,1704178244022,-500.0,0.00039999,4]
[309822637,1704178244031,-500.0,0.00039999,4]
[309822638,1704178244040,-500.54468366,0.00039999,4]
[309822639,1704178244050,-500.0,0.00039999,4]
[309822640,1704178244059,-500.0,0.00039999,4]
[309822641,1704178244070,-584.72210131,0.00039999,4]
[309822642,1704178244080,-500.0,0.00039999,4]
[309822643,1704178244090,-500.0,0.00039999,4]
[309822644,1704178244101,-500.0,0.00039999,4]
[309822645,1704178244111,-500.0,0.00039999,4]
[309822646,1704178244120,-500.0,0.00039999,4]
[309822647,1704178244129,-500.0,0.00039999,4]
[309822648,1704178244139,-500.0,0.00039999,4]
[309822649,1704178244150,-500.0,0.00039999,4]
[309822650,1704178244159,-348.30736573,0.00039999,4]
[309822651,1704178244168,-563.14,0.00039999,2]
[309822652,1704178244178,-220.80047958,0.0004,3]
[309822653,1704178244187,-211634.0,0.0004,2]
[309822654,1704178244196,-160.03156552,0.0004,4]
[309822655,1704178244206,-185.5969086,0.0004,2]
[309822656,1704178244216,-500.0,0.0004,10]
[309822657,1704178244225,-23775.26402013,0.0004,2]
[309822658,1704178244239,-1581.3354216,0.0004,2]
[309822792,1704179432236,-8405.19509211,0.00022829,2]
[309822793,1704179432246,-3731.78532301,0.0002283,2]
[309822794,1704179432256,-288.7480981,0.0002283,2]
[309822795,1704179432266,-328.73382728,0.00022831,2]
[309822796,1704179432276,-524.73174263,0.00022832,2]
[309822797,1704179432286,-2989.40003667,0.00022832,2]
[309822798,1704179432296,-1950.5397082,0.00022833,2]
[309822799,1704179432306,-154.93802479,0.00023552,2]
[309822800,1704179432317,-271.41585341,0.00023553,2]
[309822801,1704179432326,-1118.34726076,0.00023553,2]
[309822802,1704179432336,-154.93802479,0.00023553,5]
[309822803,1704179432345,-176.24809374,0.00023554,2]
[309822804,1704179432356,-7930.22202784,0.00023554,2]
[309822805,1704179432365,-154.92253873,0.00023555,2]
[309822806,1704179432375,-13669.99879992,0.00023555,2]
[309822807,1704179432385,-2235.73871425,0.00023556,2]
[309822808,1704179432394,-638.36204414,0.00023558,2]
[309822809,1704179432404,-2537.06,0.00024031,3]
[309822810,1704179432414,-253.50303766,0.00024039,7]
[309822811,1704179432423,-338.4942794,0.00024039,2]
[309822812,1704179432433,-166.77689577,0.00024039,2]
[309822813,1704179432443,-593.46742734,0.00024039,2]
[309822814,1704179432452,-1237.40369246,0.00024039,2]
[309822815,1704179432462,-399.15407367,0.00024039,2]
[309822816,1704179432472,-1028.76933116,0.00024039,2]
[309822817,1704179432482,-260.34361942,0.00024039,7]
[309822818,1704179432491,-2698.01438762,0.00024039,5]
[309822819,1704179432501,-675.69429378,0.00024039,2]
[309822820,1704179432510,-160.83720431,0.00024039,2]
[309822821,1704179432521,-154.93802479,0.00024039,2]
[309822822,1704179432530,-261.15364778,0.00024039,2]
[309822823,1704179432541,-2702.82461258,0.0002404,2]
[309822824,1704179432550,-1321.98061518,0.00024041,2]
[309822825,1704179432594,-725.68741447,0.00024041,2]
[309822826,1704179432605,-22852.33197035,0.00024041,2]
[309822827,1704179432615,-706.216942,0.00024241,2]
[309822828,1704179432624,-154.79730939,0.00024788,2]
[309822829,1704179432634,-221.77002808,0.00025,2]
[309822830,1704179432643,-3000.0,0.00025,2]
[309822831,1704179432653,-166.6666674,0.00025083,2]
[309822832,1704179432662,-5000.0,0.00025386,2]
[309822833,1704179432672,-1665.071216,0.00025474,2]
[309822834,1704179432681,-1665.071216,0.00025474,2]
[309822835,1704179432690,-1665.071216,0.00025474,2]
[309822836,1704179432700,-1665.071216,0.00025474,2]
[309822837,1704179432709,-1665.071216,0.00025474,2]
[309822838,1704179432718,-202.315409,0.00025583,2]
[309822839,1704179432728,-1174.135708,0.00026301,2]
[309822840,1704179432738,-200.0,0.00026433,15]
[309822841,1704179432747,-1174.135708,0.00027275,2]
[309822842,1704179432756,-202.315409,0.00027374,2]
[309822843,1704179432766,-154.92253873,0.00027498,2]
[309822844,1704179432775,-16401.31328569,0.000275,2]
[309822845,1704179432784,-163.63990912,0.000279,2]
[309822846,1704179432794,-781.72443064,0.00028,2]
[309822847,1704179432803,-1174.135708,0.00028248,2]
[309822848,1704179432813,-1174.135708,0.00029221,2]
[309822849,1704179432822,-154.79730937,0.00029844,2]
[309822850,1704179432831,-1174.135708,0.00030194,2]
[309822851,1704179432840,-3044.47,0.00031386,3]
[309822852,1704179432849,-2555.45976445,0.00031396,4]
[309822853,1704179432859,-3653.36,0.0003199,3]
[309822854,1704179432868,-216.47365635,0.00032,10]
[309822855,1704179432878,-984.5444071,0.00032,2]
[309822856,1704179432887,-163.63990912,0.00032233,2]
[309822857,1704179432897,-686.7472763,0.00033,3]
[309822858,1704179432907,-153.0,0.00033,2]
[309822859,1704179432917,-4758.69672081,0.00034,2]
[309822860,1704179432927,-1000.0,0.00034,7]
[309822861,1704179432937,-154.79730937,0.000349,2]
[309822862,1704179432947,-362.94826956,0.00035,3]
[309822863,1704179432958,-590.09569667,0.00035,2]
[309822864,1704179432968,-154.90705577,0.00035,4]
[309822865,1704179432977,-3537.57585844,0.00035,2]
[309822866,1704179432987,-385.0,0.00035452,2]
[309822867,1704179432997,-2238.262206,0.00035616,120]
[309822868,1704179433008,-621.61253506,0.0003563,2]
[309822869,1704179433018,-192.137288,0.00036196,2]
[309822870,1704179433028,-706.216942,0.00036361,2]
[309822871,1704179433037,-163.63990912,0.00036567,2]
[309822872,1704179433047,-2163.48,0.00036859,3]
[309822873,1704179433057,-155.45835914,0.00036869,4]
[309822874,1704179433068,-154.92253873,0.00037,4]
[309822875,1704179433077,-1000.0,0.00037245,10]
[309822876,1704179433087,-620.08062675,0.00037412,2]
[309822877,1704179433099,-980.72138753,0.000379,2]
[309822878,1704179433109,-435.0,0.0003874,2]
[309822879,1704179433118,-620.00403134,0.00039282,2]
[309822880,1704179433128,-155.58269885,0.000396,2]
[309822881,1704179433137,-307.2784068,0.0003968,2]
[309822882,1704179433147,-155.0,0.00039869,2]
[309822883,1704179433157,-155.40205275,0.000399,2]
[309822884,1704179433166,-1500.0,0.000399,2]
[309822885,1704179433176,-26744.03663729,0.00039998,2]
[309822886,1704179433185,-157.02883434,0.00039999,4]
[309822887,1704179433195,-599.15057997,0.0004,2]
[309822888,1704179433206,-5111.77443247,0.0004,4]
[309822889,1704179433215,-4608.11396632,0.0004,4]
[309822890,1704179433226,-1527.53842813,0.0004,4]
[309822891,1704179433237,-154.90705577,0.0004,5]
[309822892,1704179433247,-238.0,0.00040071,2]
[309822893,1704179433256,-219.4290851,0.0004065,2]
[309822894,1704179433266,-3056.12615138,0.00040798,6]
[309822895,1704179433276,-141997.31102937,0.00040869,2]
[309822896,1704179433286,-163.63990912,0.000409,2]
[309822897,1704179433295,-1500.0,0.000409,3]
[309822898,1704179433399,-682.30225901,0.00040925,4]
[309822899,1704179433410,-199.0,0.00040958,60]
[309822900,1704179433422,-280.7551766,0.00040959,2]
[309822901,1704179433431,-174.893691,0.0004096,2]
[309822902,1704179433441,-877.13861745,0.00040966,4]
[309822903,1704179433450,-710.46493729,0.00040966,4]
[309822904,1704179433461,-1732.92767361,0.00040966,4]
[309822905,1704179433471,-157.21239275,0.00040966,10]
[309822906,1704179433481,-155.37225016,0.00040966,4]
[309822907,1704179433492,-290.35547366,0.00040966,4]
[309822908,1704179433502,-1774.53688728,0.00040966,4]
[309822909,1704179433511,-639.5302461,0.00040966,4]
[309822910,1704179433520,-1311.95614961,0.00040967,4]
[309822911,1704179433530,-565.2892038,0.00040967,4]
[309822912,1704179433539,-4009.29137193,0.00040967,4]
[309822913,1704179433548,-6452.59520008,0.00040967,4]
[309822914,1704179433557,-585.90397292,0.00040968,4]
[309822915,1704179433568,-168.85531125,0.00040968,4]
[309822916,1704179433577,-510.11383859,0.00040968,4]
[309822917,1704179433587,-13847.79789137,0.00040968,4]
[309822918,1704179433597,-234.61473751,0.00040968,4]
[309822919,1704179433608,-154.97130112,0.00040968,4]
[309822920,1704179433621,-287.21277325,0.00040968,4]
[309822921,1704179433630,-867.62948429,0.00040968,4]
[309822922,1704179433641,-166.95305096,0.00040968,4]
[309822923,1704179433652,-231.36580499,0.00040968,4]
[309822924,1704179433662,-195.17685847,0.00040968,4]
[309822925,1704179433672,-283.82704819,0.00040968,4]
[309822926,1704179433682,-157.40415251,0.00040968,4]
[309822927,1704179433693,-1146.73360675,0.00040968,2]
[309822928,1704179433703,-155.38608327,0.00040968,4]
[309822929,1704179433712,-244.17060397,0.00040968,4]
[309822930,1704179433722,-155.47339623,0.00040968,4]
[309822931,1704179433731,-155.54479063,0.00040968,4]
[309822932,1704179433740,-769.36826896,0.00040968,4]
[309822933,1704179433749,-155.45238976,0.00040968,4]
[309822934,1704179433758,-155.01075224,0.00040968,4]
[309822935,1704179433768,-155.364495,0.00040968,2]
[309822936,1704179433777,-155.06147736,0.00040968,4]
[309822937,1704179433788,-204.50356762,0.00040968,4]